bitfinex-derivatives/quotes_BTCF0:USTF0_20250729
["timestamp","ask_amount","ask_price","bid_price","bid_amount"]
[1753799917219,2.04693361,118190.0,118180.0,0.4898]
[1753799917419,2.04693361,118190.0,118180.0,0.4918]
[1753799918927,2.04693361,118190.0,118180.0,0.24237]
[1753799919225,2.04693361,118190.0,118180.0,0.4172]
[1753799919426,2.04693361,118190.0,118180.0,0.005]
[1753799919614,1.7087288,118190.0,118180.0,0.05315]
[1753799919814,2.04693361,118190.0,118180.0,0.005]
[1753799920014,2.04693361,118190.0,118180.0,0.05315]
[1753799920213,2.04693361,118190.0,118180.0,0.4172]
[1753799920214,1.6636588,118190.0,118180.0,0.4172]
[1753799920419,1.6636588,118190.0,118180.0,0.4918]
[1753799921026,1.94941975,118190.0,118180.0,0.4918]
[1753799921619,1.94941975,118190.0,118180.0,0.005]
[1753799921820,1.94941975,118190.0,118180.0,0.05315]
[1753799924834,1.7086888,118190.0,118180.0,0.05315]
[1753799925031,1.94941975,118190.0,118180.0,0.05315]
[1753799926227,1.7086888,118190.0,118180.0,0.05315]
[1753799926733,1.94941975,118190.0,118180.0,0.47429]
[1753799927125,1.0190088,118190.0,118180.0,0.47429]
[1753799927322,0.6700788,118190.0,118180.0,0.88425405]
[1753799927524,0.6400188,118190.0,118180.0,0.88425405]
[1753799927730,0.6400188,118190.0,118180.0,1.57393405]
[1753799928034,0.8374988,118190.0,118180.0,1.3332031]
[1753799928330,0.8685088,118190.0,118180.0,1.3332031]
[1753799928828,1.0298788,118190.0,118180.0,1.16397]
[1753799929223,1.0298788,118190.0,118180.0,1.16197]
[1753799929421,1.0298788,118190.0,118180.0,1.16297]
[1753799929625,1.0298788,118190.0,118180.0,1.3322031]
[1753799929825,0.6400188,118190.0,118180.0,1.57293405]
[1753799930322,0.6400188,118190.0,118180.0,1.56993405]
[1753799930522,0.6400188,118190.0,118180.0,1.57193405]
[1753799930836,0.7157988,118190.0,118180.0,1.34987886]
[1753799931031,0.7880988,118190.0,118180.0,1.34987886]
[1753799931330,0.7881388,118190.0,118180.0,1.34987886]
[1753799931731,0.4273388,118190.0,118180.0,1.34987886]
[1753799932531,0.3550388,118190.0,118180.0,1.34987886]
[1753799932727,0.2792588,118190.0,118180.0,1.34987886]
[1753799933838,0.4273388,118190.0,118180.0,1.34987886]
[1753799934036,0.6198888,118190.0,118180.0,1.18064576]
[1753799934328,0.6691188,118190.0,118180.0,1.18064576]
[1753799934536,1.27064975,118190.0,118180.0,1.18064576]
[1753799935332,1.0299188,118190.0,118180.0,1.18064576]
[1753799935536,1.27064975,118190.0,118180.0,1.18064576]
[1753799935836,0.6691188,118190.0,118180.0,1.34987886]
[1753799936030,1.27064975,118190.0,118180.0,1.34987886]
[1753799936224,1.0299188,118190.0,118180.0,1.34987886]
[1753799937035,1.27064975,118190.0,118180.0,1.18064576]
[1753799937235,1.0299188,118190.0,118180.0,1.18064576]
[1753799937436,0.6691188,118190.0,118180.0,1.34987886]
[1753799937639,1.0299188,118190.0,118180.0,1.18064576]
[1753799937838,1.0299188,118190.0,118180.0,1.34987886]
[1753799938340,1.0299188,118190.0,118180.0,1.18064576]
[1753799938543,1.0299188,118190.0,118180.0,1.34987876]
[1753799938836,1.0299188,118190.0,118180.0,0.76006576]
[1753799939038,1.27064975,118190.0,118180.0,0.92404576]
[1753799939224,1.27064975,118190.0,118180.0,0.02167576]
[1753799939428,1.27064975,118190.0,118180.0,0.25465576]
[1753799939634,1.27064975,118190.0,118180.0,0.94653576]
[1753799939832,1.27064975,118190.0,118180.0,0.003]
[1753799940031,1.28977907,118190.0,118180.0,0.003]
[1753799940641,1.28977907,118190.0,118180.0,0.05195]
[1753799940840,1.28977907,118190.0,118180.0,0.39996]
[1753799941138,1.28977907,118190.0,118180.0,0.47102]
[1753799941330,1.28977907,118190.0,118180.0,0.05195]
[1753799941534,1.28977907,118190.0,118180.0,0.003]
[1753799943245,0.4868074,118170.0,118160.0,0.23298]
[1753799943434,1.27063835,118170.0,118160.0,1.0888]
[1753799943639,1.27063835,118170.0,118160.0,1.15986]
[1753799944429,1.27063835,118170.0,118160.0,0.47102]
[1753799944633,1.27063835,118170.0,118160.0,0.47502]
[1753799945944,1.27063835,118170.0,118160.0,0.007]
[1753799946144,1.63143835,118170.0,118160.0,0.05595]
[1753799946649,2.32339835,118170.0,118160.0,0.47502]
[1753799948347,2.32339835,118170.0,118160.0,0.40396]
[1753799948653,1.63143835,118170.0,118160.0,0.05595]
[1753799948948,1.63143835,118170.0,118160.0,0.21993]
[1753799949149,1.63143835,118170.0,118160.0,0.32532]
[1753799949453,1.63143835,118170.0,118160.0,0.35722]
[1753799949744,1.63143835,118170.0,118160.0,0.35322]
[1753799949949,1.63243835,118170.0,118160.0,0.35322]
[1753799950751,1.63243835,118170.0,118160.0,0.35022]
[1753799951344,1.63243835,118170.0,118160.0,0.04895]
[1753799951548,0.5591217,118160.0,118150.0,1.15974]
[1753799951848,1.27065265,118160.0,118150.0,1.15974]
[1753799952849,1.27065265,118160.0,118150.0,1.16074]
[1753799953245,1.0299217,118160.0,118150.0,1.331016]
[1753799953651,1.0299217,118160.0,118150.0,1.16174]
[1753799953852,1.0299217,118160.0,118150.0,1.3310161]
[1753799954048,1.27065265,118160.0,118150.0,1.3310161]
[1753799954250,1.27065265,118160.0,118150.0,1.16174]
[1753799954450,1.22142265,118160.0,118150.0,1.16174]
[1753799954651,1.26840265,118160.0,118150.0,1.16174]
[1753799955452,1.0276717,118160.0,118150.0,1.331016]
[1753799955650,1.26840265,118160.0,118150.0,1.331016]
[1753799955851,0.7204717,118160.0,118150.0,1.331016]
[1753799956152,0.69778,118160.0,118150.0,1.331016]
[1753799956355,0.9812617,118160.0,118150.0,1.331016]
[1753799956539,1.26897265,118160.0,118150.0,1.16174]
[1753799956741,1.0282417,118160.0,118150.0,1.331016]
[1753799957148,0.9812617,118160.0,118150.0,1.331016]
[1753799957646,0.9812617,118160.0,118150.0,0.639296]
[1753799957843,0.9812617,118160.0,118150.0,1.331416]
[1753799960249,1.26897265,118160.0,118150.0,1.1623]
[1753799961151,1.0282417,118160.0,118150.0,1.3315761]
[1753799961958,1.0282417,118160.0,118150.0,0.6392961]
[1753799962846,1.0282417,118160.0,118150.0,1.3321361]
[1753799963351,0.9812617,118160.0,118150.0,1.3321361]
[1753799963946,0.6400617,118160.0,118150.0,1.57286705]
[1753799964346,0.6400617,118160.0,118150.0,1.3321361]
[1753799965658,0.8357417,118160.0,118150.0,1.3321361]
[1753799965956,0.8679617,118160.0,118150.0,1.3321361]
[1753799966158,0.9821817,118160.0,118150.0,1.3321361]
[1753799966847,1.0291617,118160.0,118150.0,1.3321361]
[1753799968457,0.9821817,118160.0,118150.0,1.3321361]
[1753799970959,1.0291617,118160.0,118150.0,1.3321361]
[1753799971162,1.26989265,118160.0,118150.0,1.16286]
[1753799971465,1.26989265,118160.0,118150.0,0.05095]
[1753799971654,1.26989265,118160.0,118150.0,0.848]
[1753799971957,1.26989265,118160.0,118150.0,1.15673]
[1753799972461,1.0291617,118160.0,118150.0,1.15673]
[1753799972659,1.26989265,118160.0,118150.0,1.15673]
[1753799972863,1.0291617,118160.0,118150.0,1.15673]
[1753799973162,1.26989265,118160.0,118150.0,1.15673]
[1753799974662,1.26989265,118160.0,118150.0,0.69324]
[1753799974868,1.26989265,118160.0,118150.0,0.7408]
[1753799975066,1.26989265,118160.0,118150.0,1.15534]
[1753799976360,1.0291617,118160.0,118150.0,1.38544003]
[1753799976569,1.26989265,118160.0,118150.0,1.38544003]
[1753799976767,1.0291617,118160.0,118150.0,1.21616383]
[1753799976962,1.26993265,118160.0,118150.0,1.38544003]
[1753799977167,1.0292017,118160.0,118150.0,1.21616383]
[1753799977472,1.22295265,118160.0,118150.0,1.21616383]
[1753799977666,0.88083265,118160.0,118150.0,1.21616383]
[1753799977968,0.8140739,118180.0,118170.0,0.18323]
[1753799978170,0.96314976,118180.0,118170.0,1.3224276]
[1753799978967,1.03393976,118180.0,118170.0,1.15318]
[1753799979570,1.03593976,118180.0,118170.0,1.15318]
[1753799980068,1.03593976,118180.0,118170.0,1.3224276]
[1753799980264,1.0168639,118180.0,118170.0,1.3224276]
[1753799981079,0.7702839,118180.0,118170.0,1.3224276]
[1753799981468,0.7703239,118180.0,118170.0,1.3224276]
[1753799981971,0.7703239,118180.0,118170.0,1.15318]
[1753799982176,1.1311239,118180.0,118170.0,1.15318]
[1753799982371,0.7703239,118180.0,118170.0,1.15318]
[1753799982772,0.8173039,118180.0,118170.0,1.15318]
[1753799983070,0.8173039,118180.0,118170.0,1.3224276]
[1753799983373,1.1781039,118180.0,118170.0,1.3224276]
[1753799984075,0.8173039,118180.0,118170.0,1.3224276]
[1753799984373,1.1781039,118180.0,118170.0,1.3224276]
[1753799984970,1.1311239,118180.0,118170.0,1.3224276]
[1753799985172,0.7703239,118180.0,118170.0,1.3224276]
[1753799985775,0.4672224,118180.0,118170.0,1.3224276]
[1753799985972,0.36264176,118180.0,118170.0,1.92395855]
[1753799986169,0.3435819,118180.0,118170.0,1.92395855]
[1753799986369,0.3435819,118180.0,118170.0,1.56315855]
[1753799986570,0.13204,118180.0,118170.0,1.92395855]
[1753799986771,0.3012733,118180.0,118170.0,1.92395855]
[1753799990580,0.169259,118190.0,118180.0,0.6517933]
[1753799990878,0.279259,118190.0,118180.0,0.84336]
[1753799991080,0.90445995,118190.0,118180.0,0.48256]
[1753799991388,0.90445995,118190.0,118170.0,0.6518076]
[1753799991389,0.5537033,118180.0,118170.0,0.6518076]
[1753799991601,0.89443425,118180.0,118170.0,1.3445676]
[1753799991794,1.25523425,118180.0,118170.0,0.48256]
[1753799992194,0.5537176,118170.0,118160.0,1.10315]
[1753799992390,1.27524855,118170.0,118160.0,0.93109]
[1753799992697,1.27524855,118170.0,118160.0,1.10315]
[1753799993097,1.27524855,118170.0,118160.0,1.17548]
[1753799993497,1.2941582,118170.0,118160.0,1.17548]
[1753799994000,1.27524855,118170.0,118160.0,1.17548]
[1753799994402,1.27524855,118170.0,118160.0,1.17648]
[1753799995103,1.27524855,118170.0,118160.0,1.17548]
[1753799995403,1.27528855,118170.0,118160.0,1.17548]
[1753799996101,1.27528855,118170.0,118160.0,1.17848]
[1753799997898,1.27528855,118170.0,118160.0,1.17548]
[1753799999898,0.360162,118160.0,118150.0,0.25349383]
[1753800000096,0.90446295,118160.0,118150.0,1.01975]
[1753800000304,0.90446295,118160.0,118150.0,1.08061383]
[1753800000806,0.90446295,118160.0,118150.0,1.15294383]
[1753800001300,0.90446295,118160.0,118150.0,1.15494383]
[1753800002700,0.663732,118160.0,118150.0,1.09412]
[1753800002900,0.90446295,118160.0,118150.0,1.09412]
[1753800003603,0.90446295,118160.0,118150.0,1.09512]
[1753800003993,0.279262,118160.0,118150.0,1.3466363]
[1753800004499,0.423972,118160.0,118150.0,1.17736]
[1753800004802,0.504562,118160.0,118150.0,1.3466363]
[1753800005202,0.504562,118160.0,118150.0,1.40752755]
[1753800005203,0.359852,118160.0,118150.0,1.40752755]
[1753800005503,0.279262,118160.0,118150.0,1.40752755]
[1753800005803,0.279262,118160.0,118150.0,1.6482585]
[1753800006404,0.11,118160.0,118150.0,1.6482585]
[1753800007406,0.11,118160.0,118150.0,1.58736725]
[1753800007708,0.279262,118160.0,118150.0,1.64827876]
[1753800007902,0.279262,118160.0,118150.0,2.00907876]
[1753800009006,0.279262,118160.0,118150.0,1.07654781]
[1753800009197,0.355042,118160.0,118150.0,1.76850781]
[1753800009398,0.423972,118160.0,118150.0,1.76850781]
[1753800011001,0.423972,118160.0,118150.0,1.7075963]
[1753800011202,0.423972,118160.0,118150.0,1.17788]
[1753800011203,0.85560295,118160.0,118150.0,1.17788]
[1753800011408,0.663732,118160.0,118150.0,1.40806746]
[1753800012005,0.614872,118160.0,118150.0,1.23879116]
[1753800012319,0.614872,118160.0,118150.0,1.40806746]
[1753800013909,0.614872,118160.0,118150.0,1.23879116]
[1753800015110,0.660772,118160.0,118150.0,1.23879116]
[1753800015506,0.90150295,118160.0,118150.0,0.54593116]
[1753800015808,0.90150295,118160.0,118150.0,1.23853116]
[1753800016705,0.660772,118160.0,118150.0,1.23853116]
[1753800016908,0.90150295,118160.0,118150.0,1.17762]
[1753800018105,0.90150295,118160.0,118150.0,1.10583]
[1753800018307,0.90150295,118160.0,118150.0,1.17762]
[1753800018505,1.5030339,118160.0,118150.0,0.003]
[1753800018703,1.5623059,118160.0,118150.0,0.003]
[1753800018904,1.5623059,118160.0,118140.0,0.07567675]
[1753800018905,0.5498163,118150.0,118140.0,0.07567675]
[1753800019106,1.96374725,118150.0,118140.0,0.04699]
[1753800019311,1.27134725,118150.0,118140.0,0.29931]
[1753800019509,1.96378725,118150.0,118140.0,0.55881675]
[1753800019707,1.91788725,118150.0,118140.0,0.55881675]
[1753800019912,0.6239163,118150.0,118140.0,1.25169675]
[1753800020111,0.6239163,118150.0,118140.0,1.25269675]
[1753800020311,0.86464725,118150.0,118140.0,1.25269675]
[1753800020612,1.27134725,118150.0,118140.0,1.25269675]
[1753800023011,1.27134725,118150.0,118140.0,1.42198735]
[1753800023213,1.22544725,118150.0,118140.0,1.42198735]
[1753800023409,0.9847163,118150.0,118140.0,1.42198735]
[1753800023713,0.6500763,118150.0,118140.0,1.42198735]
[1753800024016,0.4808,118150.0,118140.0,1.3463106]
[1753800024411,0.12,118150.0,118140.0,2.0235183]
[1753800026419,0.12,118150.0,118140.0,1.94784155]
[1753800026817,0.12,118150.0,118140.0,2.04573364]
[1753800027016,0.12,118150.0,118140.0,2.06495866]
[1753800028416,0.2538947,118160.0,118150.0,0.1692763]
[1753800028607,0.12,118160.0,118150.0,1.0132163]
[1753800028811,0.1692876,118170.0,118160.0,0.6524019]
[1753800029113,0.2092876,118170.0,118160.0,2.06321551]
[1753800029319,0.2092876,118170.0,118160.0,1.72459247]
[1753800029628,0.04004,118170.0,118160.0,2.06321551]
[1753800029819,0.2092876,118170.0,118160.0,1.72459247]
[1753800030014,0.2092876,118170.0,118160.0,2.06321551]
[1753800030414,0.04004,118170.0,118160.0,2.06321551]
[1753800030615,4e-05,118170.0,118160.0,2.06321551]
[1753800030822,0.2115459,118180.0,118170.0,0.3115476]
[1753800031017,0.3315459,118180.0,118170.0,1.35181064]
[1753800031218,0.3315459,118180.0,118170.0,1.0131876]
[1753800031624,0.2892376,118180.0,118170.0,1.35181064]
[1753800031826,0.2892333,118180.0,118170.0,1.35181064]
[1753800032120,0.12,118180.0,118170.0,1.35181064]
[1753800032423,0.2892333,118180.0,118170.0,1.35181064]
[1753800033229,0.2922333,118180.0,118170.0,1.35181064]
[1753800034316,0.123,118180.0,118170.0,1.35181064]
[1753800034625,0.2922333,118180.0,118170.0,1.35181064]
[1753800034821,0.2922333,118180.0,118170.0,1.42041133]
[1753800035522,0.124,118180.0,118170.0,1.58965133]
[1753800035725,0.004,118180.0,118170.0,1.58965133]
[1753800036124,4e-05,118190.0,118180.0,0.6523733]
[1753800036428,0.2115059,118200.0,118190.0,0.652359]
[1753800036618,0.34074542,118200.0,118190.0,1.013159]
[1753800036818,0.34074542,118200.0,118190.0,1.35178204]
[1753800037518,0.12923952,118200.0,118190.0,1.35178204]
[1753800037724,0.01923952,118200.0,118190.0,1.53992136]
[1753800037926,0.253799,118210.0,118200.0,0.5317547]
[1753800038218,0.13923915,118210.0,118200.0,2.04356774]
[1753800038423,0.14923915,118210.0,118200.0,2.04356774]
[1753800038624,0.31842935,118210.0,118200.0,2.04356774]
[1753800040127,0.31842935,118210.0,118200.0,1.7049447]
[1753800040322,0.31842935,118210.0,118200.0,2.04356774]
[1753800042623,0.01923915,118210.0,118200.0,2.04356774]
[1753800043235,0.01923915,118210.0,118200.0,2.21276774]
[1753800043526,0.18842935,118210.0,118200.0,2.21276774]
[1753800043728,0.2960781,118220.0,118210.0,0.3644002]
[1753800043929,0.42530047,118220.0,118210.0,1.34155324]
[1753800044126,0.42530047,118220.0,118210.0,1.0029302]
[1753800044335,0.42530047,118220.0,118210.0,1.34155324]
[1753800044633,0.50508047,118220.0,118210.0,1.0029302]
[1753800044833,0.57961047,118220.0,118210.0,1.0029302]
[1753800045935,0.5603881,118220.0,118210.0,1.0029302]
[1753800046330,0.4060781,118220.0,118210.0,1.0029302]
[1753800046530,0.4060781,118220.0,118210.0,1.34155324]
[1753800046730,0.3114843,118220.0,118210.0,1.34155324]
[1753800050139,0.3114843,118220.0,118210.0,1.0029302]
[1753800050342,0.7078943,118220.0,118210.0,1.6935302]
[1753800050836,0.6585743,118220.0,118210.0,0.47294]
[1753800051032,0.3151502,118210.0,118200.0,0.24326]
[1753800051230,0.93615731,118210.0,118200.0,1.16362]
[1753800051444,0.93615731,118210.0,118200.0,0.47294]
[1753800051635,0.93615731,118210.0,118200.0,1.3329046]
[1753800051836,0.6956002,118210.0,118200.0,1.1637]
[1753800052240,0.6462802,118210.0,118200.0,1.3329046]
[1753800052737,0.5311802,118210.0,118200.0,1.3329046]
[1753800052939,0.2991902,118210.0,118200.0,2.03202408]
[1753800053542,0.2991902,118210.0,118200.0,2.03302408]
[1753800053738,0.13,118210.0,118200.0,2.03302408]
[1753800054038,0.13,118210.0,118200.0,2.09377335]
[1753800054944,0.13,118210.0,118200.0,1.75545387]
[1753800055142,0.13,118210.0,118200.0,2.09377335]
[1753800055745,0.2114741,118220.0,118210.0,0.7690019]
[1753800055949,0.3214741,118220.0,118210.0,1.46812138]
[1753800056150,0.27918,118220.0,118210.0,1.46812138]
[1753800056347,0.2791759,118220.0,118210.0,1.46812138]
[1753800056746,0.1691759,118220.0,118210.0,1.46812138]
[1753800056948,0.4788389,118240.0,118230.0,0.1691616]
[1753800056949,0.2045483,118240.0,118230.0,0.1691616]
[1753800057158,0.3537346,118240.0,118230.0,2.03222108]
[1753800057349,0.2691562,118240.0,118230.0,2.03222108]
[1753800057653,0.1,118240.0,118230.0,2.39302108]
[1753800057846,0.2691473,118240.0,118230.0,2.39302108]
[1753800058154,0.1,118240.0,118230.0,2.39302108]
[1753800058751,0.2537138,118250.0,118240.0,0.6420873]
[1753800058949,0.2114275,118250.0,118240.0,1.34120678]
[1753800059351,0.3114275,118250.0,118240.0,1.34120678]
[1753800059653,0.3114275,118250.0,118240.0,1.40760875]
[1753800061659,0.3114275,118250.0,118240.0,1.06928927]
[1753800061954,0.3114275,118250.0,118240.0,1.40760875]
[1753800062454,0.3114275,118250.0,118240.0,1.06928927]
[1753800062651,0.4688875,118250.0,118240.0,0.5710373]
[1753800062952,0.7078375,118250.0,118240.0,1.09285]
[1753800063156,0.7078375,118250.0,118240.0,1.3330473]
[1753800063549,0.7078375,118250.0,118240.0,1.6938473]
[1753800063550,0.6585175,118250.0,118240.0,1.6938473]
[1753800063747,0.6585175,118250.0,118240.0,1.3330473]
[1753800064351,0.6585175,118250.0,118240.0,1.1639]
[1753800064554,0.5655573,118240.0,118230.0,0.42039332]
[1753800064752,1.37467678,118240.0,118230.0,0.01850332]
[1753800064960,0.5655716,118230.0,118220.0,1.44765]
[1753800065259,0.6755716,118230.0,118220.0,2.28862679]
[1753800065853,0.6755716,118230.0,118220.0,1.59698679]
[1753800066054,0.6755716,118230.0,118220.0,2.28878679]
[1753800066554,0.6755716,118230.0,118220.0,2.11961089]
[1753800067451,0.6755716,118230.0,118220.0,2.28878679]
[1753800068755,0.6755716,118230.0,118220.0,2.11961089]
[1753800069459,0.6755716,118230.0,118220.0,2.28878679]
[1753800070256,0.6262516,118230.0,118220.0,2.28878679]
[1753800071157,0.6755716,118230.0,118220.0,2.28878679]
[1753800071847,0.6262516,118230.0,118220.0,2.28878679]
[1753800072049,0.6262516,118230.0,118220.0,2.64958679]
[1753800072248,0.2537317,118240.0,118230.0,0.1691616]
[1753800072454,0.3737317,118240.0,118230.0,1.0029016]
[1753800072957,0.5311917,118240.0,118230.0,1.0029016]
[1753800073152,0.7208217,118240.0,118230.0,1.0029016]
[1753800073850,0.7208217,118240.0,118230.0,0.47294]
[1753800074048,0.7208217,118240.0,118230.0,1.09341]
[1753800074049,1.1312817,118240.0,118230.0,1.09341]
[1753800074251,1.46960118,118240.0,118230.0,1.09341]
[1753800075258,1.1312817,118240.0,118230.0,1.09341]
[1753800076260,1.1312817,118240.0,118230.0,1.3334716]
[1753800076559,0.7276273,118240.0,118230.0,1.3334716]
[1753800077059,0.8795473,118240.0,118230.0,1.3334716]
[1753800077459,0.5187473,118240.0,118230.0,1.3334716]
[1753800078359,0.12,118240.0,118230.0,2.03259108]
[1753800078555,0.2891473,118240.0,118230.0,2.03259108]
[1753800078761,0.2891473,118240.0,118230.0,1.3334716]
[1753800078762,0.4410673,118240.0,118230.0,1.3334716]
[1753800078955,0.5185073,118240.0,118230.0,0.76269]
[1753800079149,0.6236173,118240.0,118230.0,1.3329516]
[1753800079354,0.27722,118240.0,118230.0,1.6937516]
[1753800079555,0.12,118240.0,118230.0,1.6937516]
[1753800080260,0.12,118240.0,118230.0,2.03207108]
[1753800080660,0.3608,118260.0,118250.0,0.644143]
[1753800080860,0.3608,118260.0,118250.0,1.335063]
[1753800080861,0.65841491,118260.0,118250.0,1.335063]
[1753800081370,0.2791187,118260.0,118250.0,1.695863]
[1753800081663,0.2791187,118260.0,118250.0,1.335063]
[1753800081868,0.3588987,118260.0,118250.0,1.695863]
[1753800082166,0.4310387,118260.0,118250.0,1.696863]
[1753800082665,0.5298935,118280.0,118250.0,1.52293024]
[1753800082869,0.317592,118280.0,118270.0,0.5732144]
[1753800083068,0.13,118280.0,118270.0,1.67323388]
[1753800083364,0.9488788,118300.0,118290.0,0.5968458]
[1753800083564,1.03509964,118300.0,118290.0,1.3349658]
[1753800084667,1.03509964,118300.0,118290.0,1.16589]
[1753800084868,1.0166108,118300.0,118290.0,1.16589]
[1753800085073,0.7054708,118300.0,118290.0,1.3349658]
[1753800085570,0.7054708,118300.0,118290.0,1.16589]
[1753800085767,1.0662708,118300.0,118290.0,1.16589]
[1753800086073,0.7054708,118300.0,118290.0,1.3349658]
[1753800086867,0.5185408,118300.0,118290.0,1.3349658]
[1753800087267,0.5507008,118300.0,118290.0,1.3349658]
[1753800087572,0.7054708,118300.0,118290.0,1.16589]
[1753800089773,0.7054708,118300.0,118290.0,1.3349657]
[1753800090177,0.7054708,118300.0,118290.0,1.16589]
[1753800091378,0.7054708,118300.0,118290.0,1.3349658]
[1753800092175,0.7054708,118300.0,118290.0,1.16669]
[1753800093281,0.6558108,118300.0,118290.0,1.3357658]
[1753800093781,0.6558108,118300.0,118290.0,1.16669]
[1753800094479,0.1690758,118290.0,118280.0,0.0709]
[1753800094776,1.0240058,118290.0,118280.0,1.16633]
[1753800095083,1.0240058,118290.0,118280.0,0.40411]
[1753800095276,1.0240058,118290.0,118280.0,0.04661]
[1753800095676,1.36232528,118290.0,118280.0,0.73785]
[1753800095877,0.5532201,118280.0,118270.0,0.47501]
[1753800096182,1.36233958,118280.0,118270.0,1.09563]
[1753800096782,1.0240201,118280.0,118270.0,1.09563]
[1753800097381,1.0240201,118280.0,118270.0,1.16653]
[1753800097785,1.0240201,118280.0,118270.0,0.92878]
[1753800098276,1.0240201,118280.0,118270.0,0.40411]
[1753800098471,1.0240201,118280.0,118260.0,1.09559]
[1753800098472,0.5532344,118270.0,118260.0,1.09559]
[1753800098684,0.5532344,118270.0,118260.0,1.16649]
[1753800098685,1.0440344,118270.0,118260.0,1.16649]
[1753800099085,0.9943744,118270.0,118260.0,1.3356087]
[1753800099281,0.9943744,118270.0,118260.0,1.16649]
[1753800099485,0.9943744,118270.0,118260.0,1.3356087]
[1753800099885,0.9943744,118270.0,118260.0,1.16649]
[1753800100886,0.9943744,118270.0,118260.0,1.3356087]
[1753800101186,0.9943744,118270.0,118260.0,1.16649]
[1753800102787,0.9943744,118270.0,118260.0,1.3356086]
[1753800102975,0.9943744,118270.0,118260.0,1.16649]
[1753800103787,1.0404444,118270.0,118260.0,1.16649]
[1753800104180,1.0404444,118270.0,118260.0,1.3356086]
[1753800104380,1.0404444,118270.0,118260.0,1.3356087]
[1753800104581,0.9943744,118270.0,118260.0,1.3356087]
[1753800105185,0.6599044,118270.0,118260.0,1.3356087]
[1753800105382,0.13,118270.0,118260.0,1.3356087]
[1753800105586,0.13,118270.0,118260.0,1.67392818]
[1753800107086,0.13,118270.0,118260.0,1.3356087]
[1753800107288,0.13,118270.0,118260.0,1.67392818]
[1753800107485,0.3608,118280.0,118270.0,0.1691044]
[1753800107684,0.11,118280.0,118270.0,1.35043388]
[1753800107887,0.2536296,118290.0,118280.0,0.3567801]
[1753800108093,0.3736296,118290.0,118280.0,1.3419001]
[1753800108392,0.3313572,118290.0,118280.0,1.3419001]
[1753800108588,0.3313572,118290.0,118280.0,1.68021958]
[1753800108790,0.2890758,118290.0,118280.0,1.68021958]
[1753800109095,0.2890758,118290.0,118280.0,2.04101958]
[1753800109287,0.12,118290.0,118280.0,2.04101958]
[1753800109881,0.2113382,118300.0,118290.0,0.3567658]
[1753800110084,0.3413382,118300.0,118290.0,0.6512858]
[1753800110284,0.35982749,118300.0,118290.0,0.6512858]
[1753800111394,0.31756169,118300.0,118290.0,0.6512858]
[1753800112700,0.39734169,118300.0,118290.0,0.6512858]
[1753800113397,0.46865169,118300.0,118290.0,0.6512858]
[1753800115291,0.54768169,118300.0,118290.0,0.6512858]
[1753800118300,0.65493169,118300.0,118290.0,0.6512858]
[1753800119314,0.65493169,118300.0,118290.0,0.48221]
[1753800119909,0.70100169,118300.0,118290.0,1.17217]
[1753800120308,0.70100169,118300.0,118290.0,1.3412458]
[1753800120508,0.65493169,118300.0,118290.0,1.3412458]
[1753800120811,0.54768169,118300.0,118290.0,1.5814854]
[1753800121011,0.31756169,118300.0,118290.0,1.5814854]
[1753800121215,0.31756169,118300.0,118290.0,1.3412458]
[1753800121818,0.46865169,118300.0,118290.0,1.3412458]
[1753800122212,0.46865169,118300.0,118290.0,1.5814854]
[1753800123121,0.51570169,118300.0,118290.0,1.3412458]
[1753800123316,0.54768169,118300.0,118290.0,1.3412458]
[1753800123511,0.65493169,118300.0,118290.0,1.3412458]
[1753800124715,0.31756169,118300.0,118290.0,1.5814854]
[1753800127018,0.31755069,118300.0,118290.0,1.5814854]
[1753800129922,0.31755069,118300.0,118290.0,1.9422854]
[1753800130123,0.31755069,118300.0,118290.0,1.7020458]
[1753800130322,0.31755069,118300.0,118290.0,1.9422854]
[1753800130727,0.2990614,118300.0,118290.0,1.9422854]
[1753800132618,0.2990614,118300.0,118290.0,2.9422854]
[1753800133426,0.2990614,118300.0,118290.0,3.00303467]
[1753800133826,0.1267918,118310.0,118300.0,0.1690615]
[1753800134021,0.4258515,118310.0,118300.0,1.2378511]
[1753800135030,0.4258515,118310.0,118300.0,1.2388511]
[1753800135919,0.4258515,118310.0,118300.0,0.8780511]
[1753800136424,0.6237815,118310.0,118300.0,0.8780511]
[1753800136618,0.6548315,118310.0,118300.0,0.8780511]
[1753800137323,0.6125666,118310.0,118300.0,1.2388511]
[1753800137525,0.4209019,118310.0,118300.0,1.2388511]
[1753800137725,0.3413219,118310.0,118300.0,1.2388511]
[1753800137925,0.2990472,118310.0,118300.0,1.2388511]
[1753800139431,0.2990472,118310.0,118300.0,0.9986115]
[1753800139731,0.4484472,118310.0,118300.0,1.2388511]
[1753800139925,0.5280272,118310.0,118300.0,1.2388511]
[1753800140128,0.6381872,118310.0,118300.0,0.7597]
[1753800140327,0.9266668,118310.0,118300.0,1.15855]
[1753800140523,0.6864272,118310.0,118300.0,1.15855]
[1753800141132,0.6864272,118310.0,118300.0,1.3276115]
[1753800141724,0.6864272,118310.0,118300.0,1.15855]
[1753800141924,1.0472272,118310.0,118300.0,1.15855]
[1753800142126,1.0472272,118310.0,118300.0,0.46875]
[1753800142428,1.2874668,118310.0,118300.0,1.15851]
[1753800142635,1.2874668,118310.0,118300.0,1.08866]
[1753800143832,1.2874668,118310.0,118300.0,1.15851]
[1753800144234,1.0472272,118310.0,118300.0,1.15851]
[1753800144422,1.2874668,118310.0,118300.0,1.15851]
[1753800144828,1.0472272,118310.0,118300.0,1.15851]
[1753800145630,0.9989872,118310.0,118300.0,1.15851]
[1753800145933,1.0472272,118310.0,118300.0,1.15851]
[1753800147336,1.2874668,118310.0,118300.0,1.15851]
[1753800149832,0.9989872,118310.0,118300.0,1.5678111]
[1753800150135,0.7881572,118310.0,118300.0,1.5678111]
[1753800150340,0.6598472,118310.0,118300.0,1.3275715]
[1753800150540,0.6598472,118310.0,118300.0,1.5678111]
[1753800150841,0.8092472,118310.0,118300.0,1.5678111]
[1753800152340,0.8092472,118310.0,118300.0,1.3275715]
[1753800152742,0.8577772,118310.0,118300.0,1.3275715]
[1753800152943,0.8888272,118310.0,118300.0,1.3275715]
[1753800153146,0.9989872,118310.0,118300.0,1.15851]
[1753800153843,0.6381872,118310.0,118300.0,1.3275715]
[1753800154235,0.5720841,118330.0,118310.0,0.1267788]
[1753800154434,0.471541,118330.0,118320.0,1.3120654]
[1753800154637,0.6908601,118330.0,118320.0,1.6728654]
[1753800154839,0.7391001,118330.0,118320.0,1.4326258]
[1753800155138,0.8492601,118330.0,118320.0,1.4326258]
[1753800155539,0.2890291,118330.0,118320.0,1.4326258]
[1753800155740,0.2890291,118330.0,118320.0,1.4336258]